[Event "Arona Festival 2024"]
[Site "Arona Tenerife"]
[Date "2024.06.29"]
[Round "9.3"]
[White "Gorshtein, Ido"]
[Black "Royal, Shreyas"]
[Result "1/2-1/2"]
[ECO "A16"]
[WhiteElo "2563"]
[BlackElo "2483"]
[Annotator "TA"]
[PlyCount "59"]
[EventDate "2024.06.20"]
[EventType "swiss"]
[EventCountry "ESP"]
[SourceTitle "playchess.com"]
[Source "ChessBase"]
[SourceQuality "1"]
[TimeControl "5400+30"]

{[%evp 9,59,46,47,44,44,48,33,10,55,54,64,45,53,64,52,64,62,65,72,64,77,63,75,37,39,39,40,42,43,41,43,42,44,62,61,58,56,50,51,60,64,50,80,77,72,8,8,12,35,0,0,0]} 1. c4 {[%emt 0:00:29]} Nf6 {[%emt 0:00:10]} 2. Nf3 {[%emt 0:00:07]} g6 {[%emt 0:00:12]} 3. Nc3 {[%emt 0:00:15]} Bg7 {[%emt 0:00:06]} 4. e4 {[%emt 0:00:39][%cal Be2e4,Be4e5][%mdl 32]} e5 {[%emt 0:00:20]} 5. Nxe5 {[%emt 0:02:15]} O-O {[%emt 0:00:10][%cal Of6e4]} 6. Nf3 {[%emt 0:00:03]} Re8 {[%emt 0:00:07]} 7. d3 {[%emt 0:00:22][%cal Bd2d3,Bd3d4][%mdl 32]} d5 {[%emt 0:00:39]} 8. Be3 {[%emt 0:02:03] White is slightly better.} c6 {[%emt 0:06:51]} 9. e5 $1 {[%emt 0:09:44]} Ng4 {[%emt 0:03:09]} 10. d4 {[%emt 0:00:22]} f6 {[%emt 0:02:09]} 11. cxd5 {[%emt 0:14:13][%cal Bc4d5,Bd5c6,Bc6c7][%mdl 32]} fxe5 {[%emt 0:05:21]} 12. dxe5 {[%emt 0:01:40]} Nxe3 13. fxe3 {[%emt 0:00:04]} Nd7 {[%emt 0:13:46]} 14. dxc6 {[%emt 0:03:45]} Nxe5 {[%emt 0:05:01]} 15. Qxd8 {[%emt 0:01:21]} (15. Nxe5 {simplifies} Bxe5 16. Qxd8 Rxd8 17. Bc4+) 15... Rxd8 {[%emt 0:00:04][%cal Be8d8,Bd8d7,Bd7f7][%mdl 32]} 16. c7 {[%emt 0:00:46]} (16. Nxe5 {simplifies} Bxe5 17. Bc4+ Kh8 18. Rd1) 16... Rd7 {[%emt 0:03:49]} 17. Nxe5 {[%emt 0:03:43]} Bxe5 {[%emt 0:00:02] [#]} 18. Nd5 $1 {[%emt 0:03:45]} Kg7 {[%emt 0:01:47]} (18... Rxd5 $2 {loses.} 19. Bc4 Be6 20. Bxd5 Bxd5 21. O-O-O $18) (18... Rf7 19. Bc4) 19. Rd1 {[%emt 0:03:50]} Rf7 {[%emt 0:02:26][%cal Oc8e6]} 20. Be2 {[%emt 0:17:25]} Bxc7 {[%emt 0:03:14]} 21. Nxc7 {[%emt 0:00:26]} Rxc7 {[%emt 0:00:05]} 22. O-O {[%emt 0:08:04] aiming for Rd8.} Be6 {[%emt 0:01:09]} 23. b3 {[%emt 0:01:04][%cal Bb2b3,Bb3c4][%mdl 32]} Rc2 {[%emt 0:07:32] [#]} 24. Bc4 {[%emt 0:00:23]} Bxc4 {[%emt 0:00:48]} 25. bxc4 $14 {[%emt 0:00:37] KRR-KRR} Re8 {[%emt 0:00:30]} 26. Rd7+ {[%emt 0:00:11]} Kg8 {[%emt 0:00:19]} 27. Rff7 {[%emt 0:05:28]} ({White should play} 27. Rfd1 $16) 27... Rxe3 $11 {[%emt 0:00:38]} 28. Kf1 {[%emt 0:01:44] Against Re1+. Rg7+ is the strong threat.} Ree2 {[%emt 0:05:34]} 29. Rxb7 {[%emt 0:06:03]} Red2 {[%emt 0:02:27]} 30. Ke1 {[%emt 0:02:10] Prevents Rd1+.   Weighted Error Value: White=0.10 (very precise) /Black=0.05 (flawless) .  Mistake:       	White=1     	---        Inaccurate:     	White=2     	Black=2      OK:         	White=11    	Black=8      Best:        	White=1     	Black=3      Strong:       	White=1     	---        Brilliant:      	White=1     	---} (30. Rxa7 $2 Rd1#) 1/2-1/2

[Event "Arona Festival 2024"]
[Site "Arona Tenerife"]
[Date "2024.06.29"]
[Round "9.4"]
[White "Balakrishnan, Praveen"]
[Black "Zhao, Yuanhe"]
[Result "0-1"]
[ECO "D90"]
[WhiteElo "2510"]
[BlackElo "2463"]
[Annotator "TA"]
[PlyCount "82"]
[EventDate "2024.06.20"]
[EventType "swiss"]
[EventCountry "ESP"]
[SourceTitle "playchess.com"]
[Source "ChessBase"]
[SourceQuality "1"]
[TimeControl "5400+30"]

{[%evp 14,82,40,37,39,20,15,20,14,18,33,29,34,28,45,26,34,0,3,0,9,0,29,21,30,18,36,5,15,10,4,0,17,-15,-15,-15,-1,-25,-30,-38,-46,-35,-39,-42,-24,-24,-24,-24,-24,-121,-110,-222,-170,-233,-120,-262,-231,-685,-677,-680,-555,-1227,-1170,-991,-535,-5210,-5189,-29984,-29985,-29982,-29983]} 1. d4 {[%emt 0:08:52]} Nf6 {[%emt 0:00:09]} 2. c4 {[%emt 0:00:05]} g6 {[%emt 0:00:15]} 3. Nc3 {[%emt 0:00:05]} d5 {[%emt 0:00:17]} 4. cxd5 {[%emt 0:00:07]} Nxd5 {[%emt 0:00:08]} 5. e4 {[%emt 0:00:05]} Nxc3 {[%emt 0:00:03]} 6. bxc3 {[%emt 0:00:07]} Bg7 {[%emt 0:00:05]} 7. Qa4+ {[%emt 0:00:11]} c6 {[%emt 0:04:12][%cal Bc7c6,Bc6c5][%mdl 32]} 8. Nf3 {[%emt 0:01:41]} O-O {[%emt 0:00:52][%cal Oc6c5]} 9. Qa3 {[%emt 0:02:41]} Bg4 {[%emt 0:04:05]} 10. Bg5 {[%emt 0:02:51]} Re8 {[%emt 0:01:39] The position is equal.} 11. Be2 {[%emt 0:13:40]} Qc7 {[%emt 0:01:20]} 12. e5 {[%emt 0:06:00]} c5 {[%emt 0:10:04]} 13. O-O {[%emt 0:02:20]} Nd7 {[%emt 0:01:01]} 14. h3 {[%emt 0:14:56]} Be6 {[%emt 0:00:58][%cal Bg4e6,Be6d5,Bd5c6][%mdl 32]} 15. Be3 {[%emt 0:03:10]} Bd5 {[%emt 0:01:10]} 16. Nd2 {[%emt 0:02:19]} a6 {[%emt 0:02:31]} 17. f4 {[%emt 0:04:17][%cal Rd4c5]} e6 {[%emt 0:00:23]} (17... c4 $5) 18. dxc5 {[%emt 0:04:05]} Bf8 {[%emt 0:05:25][%cal Rd7c5]} 19. c4 {[%emt 0:01:45]} Bc6 {[%emt 0:00:05]} 20. Bd4 {[%emt 0:11:09]} a5 {[%emt 0:01:04]} 21. Rab1 {[%emt 0:04:08]} Red8 {[%emt 0:05:27][%cal Od7c5]} 22. Rfd1 {[%emt 0:02:51]} a4 {[%emt 0:05:46]} 23. Bf3 {[%emt 0:05:47]} Bxf3 {[%emt 0:09:49]} 24. Qxf3 {[%emt 0:00:09]} Bxc5 {[%emt 0:00:05]} 25. Bxc5 {[%emt 0:00:54]} (25. Qxb7 $2 {perishes.} Bxd4+ 26. Kf1 Qxb7 27. Rxb7 Be3 $19 (27... Nc5 $2 28. Rb5 $19)) 25... Nxc5 {[%emt 0:00:05]} 26. Ne4 {[%emt 0:02:02]} Nxe4 {[%emt 0:03:22]} 27. Qxe4 {[%emt 0:00:10]} Rxd1+ {[%emt 0:00:26]} 28. Rxd1 {[%emt 0:00:05]} Rd8 {[%emt 0:00:03]} 29. Rxd8+ {[%emt 0:03:10]} Qxd8 $11 {[%emt 0:00:04][%mdl 4096] Endgame. KQ-KQ} 30. c5 {[%emt 0:00:34]} a3 {[%emt 0:02:00]} 31. Qb4 {[%emt 0:02:47] Dodges Qd2} (31. Qxb7 $11 {keeps the balance.} Qd4+ 32. Kh1) 31... Qd3 $17 {[%emt 0:00:18]} 32. Kh2 {[%emt 0:02:02]} (32. Qe1 $17 {was called for.}) 32... Qe3 $19 {[%emt 0:00:05]} 33. Qc4 {[%emt 0:00:38]} (33. Kh1 {was worth a try.}) 33... Qf2 {[%emt 0:00:58]} (33... Kg7 $19 34. Kh1 Qf2) 34. Kh1 {[%emt 0:00:54] Now White is beyond hope.} (34. Qb4 $17) 34... Kg7 {[%emt 0:00:09]} 35. Qb3 $2 {[%emt 0:00:44] [#]} (35. Kh2) 35... Qf1+ {[%emt 0:00:18]} (35... Qxf4 36. Qxa3 Qd4 (36... Qxe5 37. Qb4 $15) 37. Qc1 $17) 36. Kh2 {[%emt 0:00:08]} Qxf4+ {[%emt 0:00:03]} 37. Kh1 {[%emt 0:00:17]} Qc1+ {[%emt 0:00:04]} ({Weaker is} 37... Qxe5 38. Qxa3 Qd4 39. Qb3 $17) 38. Kh2 {[%emt 0:00:02]} Qxc5 {[%emt 0:00:05]} 39. Qxb7 {[%emt 0:00:12]} Qxe5+ {[%emt 0:00:05]} 40. Kh1 {[%emt 0:00:08]} Qa1+ {[%emt 0:00:03]} 41. Kh2 {[%emt 0:00:04]} Qxa2 {[%emt 0:00:04] Weighted Error Value: White=0.84/Black=0.09 (flawless) .  Mistake:       	White=5     	Black=1      Inaccurate:     	White=4     	Black=1      OK:         	White=7     	Black=11     Best:        	White=1     	Black=2} 0-1

[Event "Arona Festival 2024"]
[Site "Arona Tenerife"]
[Date "2024.06.29"]
[Round "9.5"]
[White "Paichadze, Luka"]
[Black "Albornoz Cabrera, Carlos Daniel"]
[Result "1/2-1/2"]
[ECO "B53"]
[WhiteElo "2504"]
[BlackElo "2614"]
[Annotator "TA"]
[PlyCount "78"]
[EventDate "2024.06.20"]
[EventType "swiss"]
[EventCountry "ESP"]
[SourceTitle "playchess.com"]
[Source "ChessBase"]
[SourceQuality "1"]
[TimeControl "5400+30"]

{[%evp 23,78,10,18,0,0,0,56,49,62,63,52,44,36,47,46,44,40,51,81,67,58,50,54,47,39,39,39,45,44,0,0,0,72,0,0,0,0,0,0,0,0,0,0,0,0,0,0,0,0,0,0,0,0,0,0,0,8]} 1. e4 {[%emt 0:00:09]} c5 {[%emt 0:00:04]} 2. Nf3 {[%emt 0:00:06]} d6 {[%emt 0:00:03]} 3. d4 {[%emt 0:00:47]} cxd4 {[%emt 0:00:04]} 4. Qxd4 {[%emt 0:00:03]} Nf6 {[%emt 0:00:05]} 5. Bg5 {[%emt 0:00:50]} Nc6 {[%emt 0:00:06]} 6. Bb5 {[%emt 0:00:06]} e6 {[%emt 0:00:10]} 7. Nc3 {[%emt 0:04:21]} Bd7 {[%emt 0:03:39]} 8. Qd3 {[%emt 0:00:45]} a6 {[%emt 0:00:19]} 9. Bxc6 {[%emt 0:00:07]} Bxc6 {[%emt 0:00:03]} 10. O-O-O {[%emt 0:00:09]} Be7 {[%emt 0:01:13]} 11. Nd4 {[%emt 0:00:25]} Rc8 {[%emt 0:00:07]} 12. f4 {[%emt 0:00:28]} O-O {[%emt 0:06:48]} 13. Qg3 {[%emt 0:01:00]} Qc7 {[%emt 0:13:18]} 14. Rhe1 {[%emt 0:15:25][%cal Bh1e1,Be1e5,Be5e6,Be6f6][%mdl 32]} Rfd8 {[%emt 0:13:27]} ({Black should try} 14... b5 $1 $11) 15. a3 $14 {[%emt 0:10:27] White is slightly better.} b5 {[%emt 0:07:18]} 16. f5 {[%emt 0:06:55]} Bd7 {[%emt 0:01:25][%cal Bc6d7,Bd7e8,Be8g6][%mdl 32]} 17. fxe6 {[%emt 0:01:03]} fxe6 {[%emt 0:01:29]} 18. e5 {[%emt 0:02:36]} dxe5 {[%emt 0:00:52]} 19. Rxe5 {[%emt 0:03:41]} Be8 {[%emt 0:15:23][%cal Of6e4]} 20. Rxe6 {[%emt 0:11:30]} Bd6 {[%emt 0:07:59]} 21. Qe3 {[%emt 0:14:31]} Bg6 {[%emt 0:00:10][%cal Oc7c4]} 22. Rd2 {[%emt 0:02:06]} Bc5 {[%emt 0:05:50]} 23. Bxf6 {[%emt 0:07:29]} gxf6 {[%emt 0:00:08]} 24. Rxf6 {[%emt 0:00:41]} Re8 {[%emt 0:04:31] Prevents Qe6+} 25. Re6 {[%emt 0:00:41] Hoping for Nd5.} Qxh2 {[%emt 0:01:06]} 26. b4 {[%emt 0:08:09]} Bf8 {[%emt 0:02:29] This pair of bishops is nice.} 27. Nf5 {[%emt 0:04:15] Prevents Bh6. And now Nd5 would win.} Qh5 {[%emt 0:07:44] [#]} (27... Rxc3 $11 28. Rxg6+ hxg6 29. Qxe8 gxf5 30. Qg6+ Kh8) 28. g4 {[%emt 0:04:42] Chess con chili. White has more active pieces.} Qxg4 $11 {[%emt 0:00:19] The position is equal.} 29. Rxe8 {[%emt 0:00:17]} Rxe8 {[%emt 0:00:56]} 30. Nh6+ {[%emt 0:00:02]} Bxh6 {[%emt 0:00:06]} 31. Qxh6 {[%emt 0:00:01]} a5 {[%emt 0:03:56]} 32. Nd5 {[%emt 0:00:55]} (32. bxa5 b4 33. Nd5 Re1+ 34. Kb2 bxa3+ 35. Kb3 (35. Kxa3 $2 Qc4 $19) 35... Qf3+ 36. Ka2 Qf1 37. Kxa3 Qc4 38. Nf6+ Kf7 39. Rd7+ Kxf6 $19) 32... Qf3 {[%emt 0:00:32] Prevents Nf6+} 33. Kb2 {[%emt 0:01:18]} (33. bxa5 {leads to mate.} Qxa3+ 34. Kb1 Re1+ (34... Qxa5 35. Nf6+ Kf7 36. Nxe8 $16) (34... Qxa5 35. Nf6+ Kf7 36. Nxe8 $16)) 33... axb4 {[%emt 0:00:08]} 34. axb4 {[%emt 0:00:10]} Ra8 {[%emt 0:00:51]} 35. Qe3 {[%emt 0:00:55]} Qxe3 {[%emt 0:01:33]} 36. Nxe3 {[%emt 0:00:01]} Re8 {[%emt 0:00:13]} 37. Nd5 {[%emt 0:00:26]} Kg7 {[%emt 0:00:23] Wards off Nf6} 38. c4 {[%emt 0:00:17]} bxc4 {[%emt 0:00:11]} 39. Kc3 {[%emt 0:00:09]} Re1 {[%emt 0:01:33] Weighted Error Value: White=0.06 (flawless) /Black=0.08 (flawless) .  Mistake:       	White=1     	Black=2      Inaccurate:     	White=1     	---        OK:         	White=18    	Black=15     Best:        	White=1     	Black=3} 1/2-1/2

[Event "Arona Festival 2024"]
[Site "Arona Tenerife"]
[Date "2024.06.29"]
[Round "9.6"]
[White "Raja Rithvik R"]
[Black "Peralta, Fernando"]
[Result "1/2-1/2"]
[ECO "A14"]
[WhiteElo "2511"]
[BlackElo "2562"]
[Annotator "TA"]
[PlyCount "94"]
[EventDate "2024.06.20"]
[EventType "swiss"]
[EventCountry "ESP"]
[SourceTitle "playchess.com"]
[Source "ChessBase"]
[SourceQuality "1"]
[TimeControl "5400+30"]

{[%evp 10,94,25,10,22,0,0,5,10,-2,0,7,9,0,18,4,16,0,14,6,13,2,4,10,8,0,14,0,0,4,0,10,18,-35,0,-13,-14,-45,-47,-60,-54,-63,-56,-61,-52,-67,-51,-52,-60,-51,0,-56,-56,-49,-20,-21,-6,0,-6,-169,0,0,0,0,0,0,0,-8,24,24,24,24,39,0,0,0,0,0,0,0,0,0,0,0,0,0,0]} 1. c4 {[%emt 0:01:07]} e6 {[%emt 0:00:10]} 2. g3 {[%emt 0:00:08]} d5 {[%emt 0:00:20]} 3. Bg2 {[%emt 0:00:06]} Nf6 {[%emt 0:00:17]} 4. Nf3 {[%emt 0:00:07]} Be7 {[%emt 0:00:04]} 5. O-O {[%emt 0:00:09]} O-O {[%emt 0:00:04]} 6. b3 {[%emt 0:00:05]} Nc6 {[%emt 0:02:54]} 7. cxd5 {[%emt 0:07:21]} exd5 {[%emt 0:00:40]} 8. Bb2 {[%emt 0:00:24]} Re8 {[%emt 0:03:18]} 9. d3 {[%emt 0:02:22]} Bg4 {[%emt 0:10:29]} 10. h3 {[%emt 0:06:57]} Bh5 {[%emt 0:06:13]} 11. Nbd2 {[%emt 0:08:23]} Bd6 {[%emt 0:14:02]} 12. Re1 {[%emt 0:02:37]} h6 {[%emt 0:01:42]} 13. a3 {[%emt 0:08:38]} a5 {[%emt 0:00:20]} 14. Qc2 {[%emt 0:01:17]} Bg6 {[%emt 0:06:50]} 15. e4 {[%emt 0:07:09]} dxe4 {[%emt 0:02:52]} 16. dxe4 {[%emt 0:00:07]} Qe7 {[%emt 0:05:35]} 17. Qc1 {[%emt 0:16:04] [#] Hoping for e5.} Bc5 {[%emt 0:14:52]} (17... Nxe4 $2 {loses.} 18. Nh4 $18) 18. Nh4 {[%emt 0:06:02]} Bh7 {[%emt 0:00:52]} 19. Bxf6 {[%emt 0:05:58]} gxf6 {[%emt 0:00:14]} 20. Nc4 {[%emt 0:00:04]} Nd4 {[%emt 0:06:01]} (20... Ne5 {looks sharper.} 21. Nf5 Bxf2+ 22. Kxf2 Nd3+) 21. Qc3 {[%emt 0:03:59]} (21. Qd1 $11) 21... Rad8 {[%emt 0:08:56]} 22. Ne3 {[%emt 0:03:02]} c6 {[%emt 0:02:49] Dodges Nd5} 23. Ng4 {[%emt 0:12:48]} h5 $1 {[%emt 0:02:45]} (23... Bxa3 $2 {is the wrong capture.} 24. Rxa3 (24. Qxa5 Bc5 $11) (24. Nxh6+ Kf8 $11) 24... Qxa3 25. Nxf6+ (25. Nxh6+ $2 Kf8 $19) 25... Kf8 26. Nxh7+ Kg7 27. Nf5+ Kxh7 28. Nxd4 $18) 24. Nh6+ {[%emt 0:00:05]} Kg7 {[%emt 0:03:42]} 25. N6f5+ {[%emt 0:00:05]} Bxf5 {[%emt 0:00:34]} 26. Nxf5+ {[%emt 0:00:05]} Nxf5 {[%emt 0:00:03]} 27. exf5 {[%emt 0:00:04]} Qd6 {[%emt 0:00:52] And now ...Bd4 would win.} 28. Qf3 {[%emt 0:04:45]} Qd2 {[%emt 0:01:58] White is weak on the dark squares} 29. Red1 {[%emt 0:00:49]} Qb2 {[%emt 0:00:45]} (29... Qc2 $15 30. Rdc1 Qb2) 30. b4 {[%emt 0:03:16]} (30. Bf1 $1 $11) 30... axb4 $15 {[%emt 0:01:38]} (30... Rxd1+ {feels hotter.} 31. Rxd1 axb4 32. axb4 Qxb4 33. Qxh5 Re1+) 31. axb4 {[%emt 0:00:01]} Qxb4 {[%emt 0:00:54]} 32. Qxh5 {[%emt 0:00:25]} Rd2 {[%emt 0:02:00]} 33. Rxd2 {[%emt 0:01:19]} Qxd2 {[%emt 0:00:04]} 34. Qf3 {[%emt 0:01:03] [#]} (34. Qg4+ $11 {and White has nothing to worry.} Kh7 35. Rf1) 34... Re1+ $2 {[%emt 0:02:07]} (34... Bxf2+ $1 $19 35. Qxf2 Re2) 35. Rxe1 $11 {[%emt 0:00:02]} Qxe1+ {[%emt 0:00:03][%mdl 4096] Endgame. KQB-KQB} 36. Bf1 {[%emt 0:00:08]} b5 {[%emt 0:00:44]} 37. Kg2 {[%emt 0:00:41][%cal Of1d3]} b4 {[%emt 0:00:32][%cal Ob4b3]} 38. Qe2 {[%emt 0:01:12]} Qc3 {[%emt 0:00:41]} (38... Qb1 $5) 39. Qc4 {[%emt 0:00:20]} Qe5 {[%emt 0:00:29]} 40. Bd3 {[%emt 0:00:22]} Qd6 {[%emt 0:00:34]} 41. Be4 {[%emt 0:00:27]} Ba7 {[%emt 0:00:29] The position is equal.} 42. Qxc6 {[%emt 0:00:16]} Qd4 {[%emt 0:00:23]} 43. Qc2 {[%emt 0:00:34]} b3 {[%emt 0:00:16]} 44. Qe2 {[%emt 0:00:07]} b2 {[%emt 0:00:18]} 45. Bb1 {[%emt 0:00:29]} Qd5+ {[%emt 0:00:34]} 46. Qe4 {[%emt 0:00:41]} Qd2 {[%emt 0:00:25]} 47. Qc2 {[%emt 0:00:17]} Qc1 {[%emt 0:00:25] Weighted Error Value: White=0.14 (very precise) /Black=0.11 (very precise) .  Loses game:     	White=1     	---        Missed win:     	---       	Black=1      Mistake:       	White=2     	Black=1      Inaccurate:     	White=2     	Black=3      OK:         	White=21    	Black=20     Best:        	White=3     	---        Strong:       	---       	Black=1} 1/2-1/2

[Event "Arona Festival 2024"]
[Site "Arona Tenerife"]
[Date "2024.06.29"]
[Round "9.7"]
[White "Socko, Bartosz"]
[Black "Martinez Ramirez, Lennis"]
[Result "1-0"]
[ECO "D78"]
[WhiteElo "2556"]
[BlackElo "2449"]
[Annotator "RC"]
[PlyCount "67"]
[EventDate "2024.06.20"]
[EventType "swiss"]
[EventCountry "ESP"]
[SourceTitle "playchess.com"]
[Source "ChessBase"]
[SourceQuality "1"]
[TimeControl "5400+30"]

1. d4 {[%emt 0:00:02]} Nf6 {[%emt 0:01:44]} 2. Nf3 {[%emt 0:00:08]} g6 {[%emt 0:00:27]} 3. c4 {[%emt 1:31:50]} Bg7 {[%emt 0:00:10]} 4. g3 {[%emt 0:00:00]} c6 {[%emt 0:03:16]} 5. Bg2 {[%emt 0:00:00]} d5 {[%emt 0:00:05]} 6. O-O {[%emt 0:00:00]} O-O {[%emt 0:00:15]} 7. Qb3 {[%emt 0:00:00]} a5 {[%emt 0:00:17]} 8. Bf4 {[%emt 0:00:00]} a4 {[%emt 0:09:38]} 9. Qb4 {[%emt 0:00:00]} dxc4 {[%emt 0:00:20]} 10. Qxc4 {[%emt 0:00:00]} Bg4 {[%emt 0:04:51]} 11. Rd1 {[%emt 0:00:00]} Nbd7 {[%emt 0:00:12]} 12. Nc3 {[%emt 0:00:00]} Nb6 {[%emt 0:02:26]} 13. Qd3 {[%emt 0:00:00]} Bxf3 {[%emt 0:02:13]} 14. Bxf3 {[%emt 0:00:00]} Nfd5 {[%emt 0:00:15]} 15. Bg5 {[%emt 0:00:00]} h6 {[%emt 0:03:40]} 16. Bc1 {[%emt 0:00:00]} a3 {[%emt 0:03:18]} 17. bxa3 {[%emt 0:00:00]} Nxc3 18. Qxc3 {[%emt 0:00:00]} e5 {[%emt 0:02:44]} 19. Be3 {[%emt 0:00:00]} Na4 {[%emt 0:26:16]} 20. Qb4 {[%emt 0:00:00]} exd4 {[%emt 0:00:10]} 21. Bxd4 {[%emt 0:00:00]} Bxd4 22. Rxd4 {[%emt 0:00:00]} Qf6 {[%emt 0:03:14]} 23. Rc1 {[%emt 0:00:00]} Qg5 {[%emt 0:19:09]} 24. Rf4 {[%emt 0:00:00]} Ra7 {[%emt 0:04:37]} 25. h4 {[%emt 0:00:00]} Qa5 {[%emt 0:02:23]} 26. Qd4 {[%emt 0:00:00]} c5 {[%emt 0:00:11]} 27. Qd5 {[%emt 0:00:00]} b5 {[%emt 0:00:33]} 28. h5 {[%emt 0:00:00]} Rd8 {[%emt 0:01:57]} 29. Qe5 {[%emt 0:00:00]} Qd2 {[%emt 0:01:16]} 30. Rb1 {[%emt 0:00:00]} Nc3 {[%emt 0:07:58]} 31. hxg6 {[%emt 0:00:00]} Nxb1 {[%emt 0:00:51]} 32. gxf7+ {[%emt 0:00:00]} Rxf7 {[%emt 0:00:15]} 33. Rxf7 {[%emt 0:00:00]} Qd4 {[%emt 0:01:48]} 34. Qf5 {[%emt 0:15:30]} 1-0

[Event "Arona Festival 2024"]
[Site "Arona Tenerife"]
[Date "2024.06.29"]
[Round "9.8"]
[White "Bilguun, Sumiya"]
[Black "Sankalp Gupta"]
[Result "1/2-1/2"]
[ECO "B30"]
[WhiteElo "2466"]
[BlackElo "2552"]
[Annotator "TA"]
[PlyCount "95"]
[EventDate "2024.06.20"]
[EventType "swiss"]
[EventCountry "ESP"]
[SourceTitle "playchess.com"]
[Source "ChessBase"]
[SourceQuality "1"]
[TimeControl "5400+30"]

{[%evp 30,95,0,-50,-18,-46,-48,-22,-15,-50,-22,-294,-297,-310,-305,-279,-175,-167,-168,-164,-165,-243,-207,-200,-181,-276,-275,-273,-276,-291,-282,-281,-242,-309,-320,-312,-297,-291,-277,-273,-251,-235,-222,-234,-125,-126,0,-293,-288,-357,-358,-404,-120,-115,691,-118,-100,-109,-125,-114,-110,-162,-162,-198,-155,-180,0,0]} 1. e4 {[%emt 0:00:06]} c5 {[%emt 0:00:53]} 2. Nc3 {[%emt 0:00:55]} Nc6 {[%emt 0:00:02]} 3. Bb5 {[%emt 0:02:51]} Nd4 {[%emt 0:00:03]} 4. Nf3 {[%emt 0:00:15]} e6 {[%emt 0:00:04]} 5. Bc4 {[%emt 0:00:24]} Nf6 {[%emt 0:06:04]} 6. O-O {[%emt 0:06:41]} a6 {[%emt 0:10:13]} 7. d3 {[%emt 0:11:42] B30: Sicilian: 2...Nc6 3 Bb5, lines without ...g6.} b5 {[%emt 0:02:29]} 8. Bb3 {[%emt 0:00:52]} Nxf3+ {[%emt 0:01:20]} 9. Qxf3 {[%emt 0:00:35]} Bb7 {[%emt 0:00:02]} 10. Re1 {[%emt 0:09:33]} Rc8 $146 {[%emt 0:03:45]} ({Predecessor:} 10... d6 11. Bg5 Be7 12. a3 O-O 13. Ne2 Nd7 14. Bd2 Bf6 15. Rab1 Ne5 16. Qh3 d5 {0-1 Truhina,A-Adamova,T (1924) RUS-ch U26 (Women) 2012 (1)}) 11. Qg3 {[%emt 0:13:17]} d6 {[%emt 0:00:37]} 12. Bd2 {[%emt 0:09:29]} h5 {[%emt 0:03:07]} 13. a3 {[%emt 0:12:09]} h4 {[%emt 0:03:58]} 14. Qh3 {[%emt 0:02:07]} Be7 {[%emt 0:00:02]} 15. f4 {[%emt 0:00:56]} O-O {[%emt 0:03:10]} 16. f5 {[%emt 0:01:37]} (16. Qxh4 $2 Nxe4 $19) (16. Rad1 $11) 16... c4 {[%emt 0:07:44]} 17. Ba2 {[%emt 0:03:51]} exf5 {[%emt 0:20:45]} 18. Qxf5 {[%emt 0:07:28]} d5 {[%emt 0:00:02]} 19. e5 {[%emt 0:04:46]} g6 {[%emt 0:00:03]} 20. Qf3 $2 {[%emt 0:01:37][%mdl 8192]} (20. Qf2 $11 {and White is okay.} Ne4 (20... Ng4 21. Qf4 $11) 21. Nxe4 (21. dxe4 $2 Bc5 $19) 21... dxe4 22. dxe4) 20... Qb6+ $19 {[%emt 0:01:51]} 21. Kh1 {[%emt 0:08:17]} d4 {[%emt 0:00:02]} 22. Ne4 {[%emt 0:00:29]} Bxe4 {[%emt 0:02:17]} 23. dxe4 {[%emt 0:00:12]} Nd7 {[%emt 0:00:02]} 24. Bf4 {[%emt 0:00:40]} Qe6 {[%emt 0:00:06]} 25. Qf2 {[%emt 0:00:38]} (25. b3 $142) 25... Nxe5 {[%emt 0:02:56]} 26. Qxd4 {[%emt 0:00:55]} Ng4 {[%emt 0:00:01]} 27. h3 {[%emt 0:00:34]} (27. Qd2 {was called for.}) 27... Rfd8 $19 {[%emt 0:00:18]} 28. Qc3 {[%emt 0:00:39]} Nf2+ {[%emt 0:00:05]} 29. Kh2 {[%emt 0:00:33]} Nxe4 {[%emt 0:00:15]} 30. Qe5 {[%emt 0:00:20]} Nc5 {[%emt 0:05:07]} 31. Rad1 {[%emt 0:00:22]} Bd6 {[%emt 0:09:47]} 32. Qg5 {[%emt 0:00:58]} ({Much weaker is} 32. Rxd6 Rxd6 33. Qc3 Qd7 (33... Ne4 $2 34. Rxe4 Qxe4 35. Bxd6 $19) 34. Bxd6 Qxd6+ 35. Kh1 Na4 $19) 32... Bxf4+ {[%emt 0:00:22]} 33. Qxf4 {[%emt 0:00:01]} Rxd1 {[%emt 0:00:07]} 34. Rxd1 {[%emt 0:00:35]} Qe7 {[%emt 0:00:21]} 35. b3 {[%emt 0:00:50]} Ne6 {[%emt 0:03:13]} 36. Qd6 {[%emt 0:00:15]} Qb7 {[%emt 0:00:01]} ({Black should play} 36... Qg5 $19 37. Qxa6 Rf8) 37. Qe5 $17 {[%emt 0:00:29]} Qe7 {[%emt 0:05:48]} (37... Rc5 $17 38. Rd8+ Nxd8 39. Qxc5 Qb8+ 40. Kg1 Ne6) 38. bxc4 $2 {[%emt 0:00:47][%mdl 8192]} (38. Qd6 $1 $11 Qg5 39. Qxa6) 38... Qxa3 $19 {[%emt 0:00:42]} 39. cxb5 {[%emt 0:00:20]} Qxa2 {[%emt 0:00:26]} 40. b6 {[%emt 0:00:04] [#]} Rxc2 $2 {[%emt 0:05:36]} (40... Qa3 $1 $19 41. b7 Qg3+ (41... Rxc2 $2 {too greedy.} 42. b8=Q+ Nf8 43. Qed6 $18) 42. Qxg3 hxg3+ 43. Kxg3 Rf8 (43... Rxc2 $2 {is the wrong capture.} 44. b8=Q+ Kg7 45. Rd7 $18) (43... Rb8 $2 44. Ra1 $19)) 41. b7 $17 {[%emt 0:00:12]} Rxg2+ {[%emt 0:00:03]} 42. Kh1 {[%emt 0:00:03]} Rb2 {[%emt 0:00:05]} 43. b8=Q+ {[%emt 0:00:46]} Rxb8 {[%emt 0:00:02]} 44. Qxb8+ {[%emt 0:00:06]} Kh7 {[%emt 0:00:03]} 45. Rf1 {[%emt 0:01:23]} (45. Qb4 $17) 45... Nd4 $19 {[%emt 0:01:50]} 46. Qe5 {[%emt 0:01:08]} Nf5 {[%emt 0:01:39]} 47. Kg1 {[%emt 0:00:19]} Qb3 $2 {[%emt 0:00:28]} (47... Ng3 $19 48. Rd1 Qc4) 48. Rxf5 $1 {[%emt 0:00:22]} 1/2-1/2